[Event "Live Chess"]
[Site "Chess.com"]
[Date "2023.05.21"]
[Round "-"]
[White "YrrriKharkiv"]
[Black "Denz14"]
[Result "1-0"]
[WhiteElo "2063"]
[BlackElo "1048"]
[TimeControl "300"]
[EndTime "2:12:10 PDT"]
[Termination "YrrriKharkiv won by resignation"]

1. d4 {[%clk 0:04:55.8]} 1... e6 {[%clk 0:04:56.9]} 2. Nf3 {[%clk 0:04:51.9]}
2... d5 {[%clk 0:04:56.8]} 3. c4 {[%clk 0:04:50.5]} 3... c6 {[%clk 0:04:55.1]}
4. Nc3 {[%clk 0:04:48.8]} 4... Bb4 {[%clk 0:04:52.7]} 5. e3 {[%clk 0:04:45.1]}
5... Nf6 {[%clk 0:04:50.6]} 6. Bd3 {[%clk 0:04:43.2]} 6... O-O {[%clk
0:04:47.8]} 7. O-O {[%clk 0:04:42.1]} 7... Ne4 {[%clk 0:04:46.2]} 8. Nxe4 {[%clk
0:04:40.3]} 8... dxe4 {[%clk 0:04:44.8]} 9. Bxe4 {[%clk 0:04:39.9]} 9... f5
{[%clk 0:04:38.9]} 10. Bd3 {[%clk 0:04:37.8]} 10... Nd7 {[%clk 0:04:29.3]} 11.
Qb3 {[%clk 0:04:21.1]} 11... Bd6 {[%clk 0:04:25.5]} 12. c5 {[%clk 0:04:19.5]}
12... Bb8 {[%clk 0:04:23.5]} 13. Qxe6+ {[%clk 0:04:18.3]} 13... Kh8 {[%clk
0:04:14.5]} 14. Qb3 {[%clk 0:04:07.4]} 14... Qc7 {[%clk 0:04:11.7]} 15. g3
{[%clk 0:03:57.2]} 15... Nf6 {[%clk 0:04:03.4]} 16. Qc2 {[%clk 0:03:43.8]} 16...
Ne4 {[%clk 0:03:57.9]} 17. Ne5 {[%clk 0:03:30.4]} 17... Qe7 {[%clk 0:03:45.5]}
18. Bxe4 {[%clk 0:03:26.1]} 18... Bxe5 {[%clk 0:03:42.2]} 19. Bg2 {[%clk
0:03:19]} 19... Bc7 {[%clk 0:03:33.6]} 20. Bd2 {[%clk 0:03:16.3]} 20... Be6
{[%clk 0:03:29.2]} 21. b4 {[%clk 0:03:05]} 21... Rad8 {[%clk 0:03:22.8]} 22. Bc3
{[%clk 0:03:02.1]} 22... Bd5 {[%clk 0:03:21]} 23. Qd3 {[%clk 0:02:48.2]} 23...
Be4 {[%clk 0:03:19.4]} 24. Qd2 {[%clk 0:02:46]} 24... Rd5 {[%clk 0:03:11.6]} 25.
f3 {[%clk 0:02:44.2]} 1-0

[Event "Live Chess"]
[Site "Chess.com"]
[Date "2023.05.21"]
[Round "-"]
[White "RamsayFlayer"]
[Black "Mugzwang"]
[Result "1-0"]
[WhiteElo "1971"]
[BlackElo "1557"]
[TimeControl "300"]
[EndTime "2:12:12 PDT"]
[Termination "RamsayFlayer won on time"]

1. e4 {[%clk 0:04:58.5]} 1... c5 {[%clk 0:04:57.5]} 2. c3 {[%clk 0:04:56.9]}
2... Nf6 {[%clk 0:04:55.2]} 3. e5 {[%clk 0:04:55.6]} 3... Nd5 {[%clk 0:04:54.1]}
4. d4 {[%clk 0:04:55.3]} 4... cxd4 {[%clk 0:04:53.4]} 5. cxd4 {[%clk 0:04:55.2]}
5... Nc6 {[%clk 0:04:50.4]} 6. Nf3 {[%clk 0:04:54.4]} 6... d6 {[%clk 0:04:49.7]}
7. exd6 {[%clk 0:04:48.9]} 7... Qxd6 {[%clk 0:04:48.3]} 8. Nc3 {[%clk
0:04:48.4]} 8... Nxc3 {[%clk 0:04:43]} 9. bxc3 {[%clk 0:04:44.6]} 9... Bg4
{[%clk 0:04:32.2]} 10. Be2 {[%clk 0:04:37.1]} 10... e5 {[%clk 0:04:14.7]} 11.
dxe5 {[%clk 0:04:33]} 11... Qxd1+ {[%clk 0:04:12.5]} 12. Bxd1 {[%clk 0:04:30.6]}
12... Bxf3 {[%clk 0:04:02]} 13. Bxf3 {[%clk 0:04:28]} 13... Nxe5 {[%clk
0:04:01.3]} 14. Bxb7 {[%clk 0:04:26.9]} 14... Rb8 {[%clk 0:03:59.9]} 15. Bf4
{[%clk 0:04:22.9]} 15... Nd3+ {[%clk 0:03:55]} 16. Kd2 {[%clk 0:04:19.4]} 16...
Nxf4 {[%clk 0:03:54.2]} 17. Bc6+ {[%clk 0:04:16.7]} 17... Kd8 {[%clk 0:03:48.3]}
18. Rhe1 {[%clk 0:04:11.7]} 18... Bc5 {[%clk 0:03:41.9]} 19. g3 {[%clk
0:03:53.7]} 19... Ne6 {[%clk 0:03:31.2]} 20. f4 {[%clk 0:03:47.1]} 20... Rb6
{[%clk 0:03:29.6]} 21. Ba4 {[%clk 0:03:42.8]} 21... Kc7 {[%clk 0:03:14.9]} 22.
Kc2 {[%clk 0:03:34.8]} 22... Rhb8 {[%clk 0:03:00.1]} 23. Bb3 {[%clk 0:03:32.4]}
23... a5 {[%clk 0:02:50.1]} 24. Re5 {[%clk 0:03:29.4]} 24... Bd6 {[%clk
0:02:34.5]} 25. Re3 {[%clk 0:03:17.3]} 25... a4 {[%clk 0:02:31.6]} 26. Bxe6
{[%clk 0:03:14.4]} 26... fxe6 {[%clk 0:02:29.5]} 27. Rxe6 {[%clk 0:03:12]} 27...
Rb2+ {[%clk 0:02:22.7]} 28. Kd3 {[%clk 0:03:10.8]} 28... R2b6 {[%clk 0:02:16.3]}
29. Re2 {[%clk 0:02:53.4]} 29... Rd8 {[%clk 0:02:12.5]} 30. Kc2 {[%clk 0:02:51]}
30... Rdb8 {[%clk 0:02:10.5]} 31. Rae1 {[%clk 0:02:44.4]} 31... Rb2+ {[%clk
0:02:05.6]} 32. Kd3 {[%clk 0:02:43.4]} 32... Rxe2 {[%clk 0:02:04.9]} 33. Rxe2
{[%clk 0:02:42.3]} 33... a3 {[%clk 0:02:01.6]} 34. Kc4 {[%clk 0:02:20.7]} 34...
Rb2 {[%clk 0:01:59.5]} 35. Re8 {[%clk 0:02:08]} 35... Rxa2 {[%clk 0:01:57]} 36.
Rg8 {[%clk 0:02:06.4]} 36... Rxh2 {[%clk 0:01:50.6]} 37. Rxg7+ {[%clk
0:02:05.1]} 37... Kc6 {[%clk 0:01:49.9]} 38. Ra7 {[%clk 0:02:03.2]} 38... a2
{[%clk 0:01:48.6]} 39. Kb3 {[%clk 0:02:01]} 39... Rg2 {[%clk 0:01:46.7]} 40.
Rxa2 {[%clk 0:01:40.4]} 40... Rxa2 {[%clk 0:01:42.4]} 41. Kxa2 {[%clk
0:01:40.3]} 41... Kd5 {[%clk 0:01:40]} 42. Kb3 {[%clk 0:01:38.6]} 42... Ke4
{[%clk 0:01:39.4]} 43. Kc4 {[%clk 0:01:37.2]} 43... Kf3 {[%clk 0:01:38.8]} 44.
Kd5 {[%clk 0:01:36]} 44... Bb8 {[%clk 0:01:36.5]} 45. Ke6 {[%clk 0:01:33.5]}
45... Kxg3 {[%clk 0:01:30.5]} 46. f5 {[%clk 0:01:31.6]} 46... Bf4 {[%clk
0:01:07.4]} 47. f6 {[%clk 0:01:28.6]} 47... h5 {[%clk 0:01:00.3]} 48. c4 {[%clk
0:01:18]} 48... h4 {[%clk 0:00:57]} 49. c5 {[%clk 0:01:17.2]} 49... h3 {[%clk
0:00:54.9]} 50. c6 {[%clk 0:01:16.3]} 50... h2 {[%clk 0:00:49.4]} 51. f7 {[%clk
0:01:15.8]} 51... Bh6 {[%clk 0:00:45.7]} 52. c7 {[%clk 0:01:11.5]} 52... h1=Q
{[%clk 0:00:43.1]} 53. Kd7 {[%clk 0:01:09.9]} 53... Qd5+ {[%clk 0:00:33.1]} 54.
Ke8 {[%clk 0:00:57.4]} 54... Qc6+ {[%clk 0:00:27.5]} 55. Kd8 {[%clk 0:00:56.2]}
55... Bg5+ {[%clk 0:00:20.6]} 56. Kc8 {[%clk 0:00:53.4]} 56... Qa6+ {[%clk
0:00:17.5]} 57. Kd7 {[%clk 0:00:51.6]} 57... Qd3+ {[%clk 0:00:14.5]} 58. Ke8
{[%clk 0:00:49.6]} 58... Qe4+ {[%clk 0:00:13.1]} 59. Kf8 {[%clk 0:00:46]} 59...
Qe7+ {[%clk 0:00:11.9]} 60. Kg8 {[%clk 0:00:45.1]} 60... Qxc7 {[%clk 0:00:05.8]}
61. f8=Q {[%clk 0:00:43.9]} 61... Qc4+ {[%clk 0:00:03.1]} 62. Kh7 {[%clk
0:00:41.9]} 62... Qc7+ {[%clk 0:00:01.7]} 63. Kg6 {[%clk 0:00:39.7]} 1-0

[Event "Live Chess"]
[Site "Chess.com"]
[Date "2023.05.21"]
[Round "-"]
[White "Goblinbasher"]
[Black "ProfPoisson"]
[Result "0-1"]
[WhiteElo "1228"]
[BlackElo "1224"]
[TimeControl "300"]
[EndTime "2:12:13 PDT"]
[Termination "ProfPoisson won - game abandoned"]

1. e4 {[%clk 0:04:55.5]} 1... e5 {[%clk 0:04:58.2]} 2. Nc3 {[%clk 0:04:54.2]}
2... Nf6 {[%clk 0:04:55.6]} 3. f4 {[%clk 0:04:52.9]} 3... d5 {[%clk 0:04:53.7]}
4. fxe5 {[%clk 0:04:52]} 4... Nxe4 {[%clk 0:04:51.4]} 5. Nf3 {[%clk 0:04:51.3]}
5... Nxc3 {[%clk 0:04:48]} 6. bxc3 {[%clk 0:04:48.2]} 6... Bg4 {[%clk
0:04:39.1]} 7. d4 {[%clk 0:04:44.5]} 7... c5 {[%clk 0:04:35.4]} 8. Bb5+ {[%clk
0:04:37.6]} 8... Nc6 {[%clk 0:04:31.6]} 9. Kf1 {[%clk 0:04:36]} 9... a6 {[%clk
0:04:17.3]} 10. Bxc6+ {[%clk 0:04:34.2]} 10... bxc6 {[%clk 0:04:14.7]} 11. e6
{[%clk 0:04:26.8]} 11... Bxe6 {[%clk 0:04:10.6]} 12. Ne5 {[%clk 0:04:19.3]}
12... Bd6 {[%clk 0:03:59.3]} 13. Nxc6 {[%clk 0:04:16.9]} 13... Qf6+ {[%clk
0:03:53]} 14. Kg1 {[%clk 0:04:11]} 14... O-O {[%clk 0:03:35.9]} 15. Qe2 {[%clk
0:03:57.1]} 15... Rfe8 {[%clk 0:03:25.9]} 16. Bd2 {[%clk 0:03:42.6]} 16... Bd7
{[%clk 0:03:07.4]} 0-1

[Event "Live Chess"]
[Site "Chess.com"]
[Date "2023.05.21"]
[Round "-"]
[White "Shepherds_Pie"]
[Black "DRS44"]
[Result "1-0"]
[WhiteElo "1940"]
[BlackElo "1322"]
[TimeControl "300"]
[EndTime "2:12:18 PDT"]
[Termination "Shepherds_Pie won on time"]

1. c4 {[%clk 0:04:57.7]} 1... c5 {[%clk 0:04:31.4]} 2. Nc3 {[%clk 0:04:55]} 2...
Nf6 {[%clk 0:04:22.5]} 3. g3 {[%clk 0:04:53.6]} 3... Nc6 {[%clk 0:04:16.5]} 4.
Bg2 {[%clk 0:04:52.4]} 4... e6 {[%clk 0:04:05.9]} 5. Nf3 {[%clk 0:04:48.8]} 5...
d5 {[%clk 0:03:58.2]} 6. cxd5 {[%clk 0:04:46.7]} 6... exd5 {[%clk 0:03:54.8]} 7.
d4 {[%clk 0:04:45.5]} 7... cxd4 {[%clk 0:03:48.6]} 8. Nxd4 {[%clk 0:04:44.3]}
8... Nxd4 {[%clk 0:03:44.5]} 9. Qxd4 {[%clk 0:04:43.1]} 9... Be6 {[%clk
0:03:35.5]} 10. O-O {[%clk 0:04:41]} 10... Bd6 {[%clk 0:02:53.8]} 11. Rd1 {[%clk
0:04:30.2]} 11... Rc8 {[%clk 0:02:09]} 12. Nxd5 {[%clk 0:04:26.3]} 12... Bxd5
{[%clk 0:01:59.9]} 13. Bxd5 {[%clk 0:04:21.8]} 13... O-O {[%clk 0:01:39.1]} 14.
Bg5 {[%clk 0:04:17.1]} 14... h6 {[%clk 0:01:14.2]} 15. Bxf6 {[%clk 0:04:06.2]}
15... Qxf6 {[%clk 0:01:10]} 16. Qxf6 {[%clk 0:04:02]} 16... gxf6 {[%clk
0:01:05.8]} 17. Bxb7 {[%clk 0:04:00.4]} 17... Rb8 {[%clk 0:00:57.4]} 18. Rxd6
{[%clk 0:03:54.7]} 18... Rxb7 {[%clk 0:00:47.1]} 19. b3 {[%clk 0:03:53.2]} 19...
Rc8 {[%clk 0:00:30]} 20. Rad1 {[%clk 0:03:48.5]} 20... Rbc7 {[%clk 0:00:23.3]}
21. Kg2 {[%clk 0:03:46.1]} 21... Rc2 {[%clk 0:00:14.9]} 22. R1d2 {[%clk
0:03:44.5]} 22... Rc1 {[%clk 0:00:08.7]} 23. e3 {[%clk 0:03:42]} 23... Ra1
{[%clk 0:00:00.7]} 24. Rd8+ {[%clk 0:03:37.7]} 1-0

[Event "Live Chess"]
[Site "Chess.com"]
[Date "2023.05.21"]
[Round "-"]
[White "Pandreq"]
[Black "anatoliy10912"]
[Result "0-1"]
[WhiteElo "1253"]
[BlackElo "1556"]
[TimeControl "300"]
[EndTime "2:12:26 PDT"]
[Termination "anatoliy10912 won on time"]

1. d4 {[%clk 0:04:58.3]} 1... d5 {[%clk 0:04:58.9]} 2. c4 {[%clk 0:04:57.4]}
2... e6 {[%clk 0:04:58.2]} 3. Nc3 {[%clk 0:04:55.1]} 3... Nf6 {[%clk 0:04:57.1]}
4. e3 {[%clk 0:04:52.8]} 4... Bb4 {[%clk 0:04:50.8]} 5. Bd2 {[%clk 0:04:48.4]}
5... Nc6 {[%clk 0:04:46.3]} 6. a3 {[%clk 0:04:46.4]} 6... Bxc3 {[%clk
0:04:43.9]} 7. Bxc3 {[%clk 0:04:45.1]} 7... a6 {[%clk 0:04:40.4]} 8. b4 {[%clk
0:04:42.4]} 8... Bd7 {[%clk 0:04:33.4]} 9. c5 {[%clk 0:04:32.8]} 9... O-O {[%clk
0:04:23.4]} 10. Bd3 {[%clk 0:04:31.1]} 10... Na7 {[%clk 0:04:13]} 11. Bc2 {[%clk
0:04:24.8]} 11... Bb5 {[%clk 0:04:10]} 12. a4 {[%clk 0:04:17.9]} 12... Bc4
{[%clk 0:04:08.3]} 13. Bb3 {[%clk 0:04:11]} 13... b5 {[%clk 0:03:58.7]} 14. axb5
{[%clk 0:04:04.3]} 14... Bxb5 {[%clk 0:03:38.5]} 15. Nf3 {[%clk 0:03:53.2]}
15... Ne4 {[%clk 0:03:36.9]} 16. Bb2 {[%clk 0:03:44.3]} 16... Nc6 {[%clk
0:03:35.5]} 17. Ba3 {[%clk 0:03:37.6]} 17... Qb8 {[%clk 0:03:08.5]} 18. Ng1
{[%clk 0:03:24.1]} 18... a5 {[%clk 0:02:42.9]} 19. bxa5 {[%clk 0:03:05]} 19...
Nxa5 {[%clk 0:02:26.3]} 20. Qc2 {[%clk 0:02:41.2]} 20... Nc4 {[%clk 0:02:06.2]}
21. Bxc4 {[%clk 0:02:31.4]} 21... Bxc4 {[%clk 0:02:06.1]} 22. Ne2 {[%clk
0:02:17.1]} 22... Rxa3 {[%clk 0:01:29.9]} 23. Rxa3 {[%clk 0:02:08.8]} 23... Qb4+
{[%clk 0:01:25.2]} 24. Rc3 {[%clk 0:01:49.5]} 24... Bxe2 {[%clk 0:01:07.5]} 25.
Kxe2 {[%clk 0:01:36.9]} 25... Qxc3 {[%clk 0:01:00.1]} 26. Qxc3 {[%clk
0:01:29.2]} 26... Nxc3+ {[%clk 0:01:00]} 27. Kd3 {[%clk 0:01:23.2]} 27... Nb5
{[%clk 0:00:55.3]} 28. Rb1 {[%clk 0:01:21.5]} 28... c6 {[%clk 0:00:54.9]} 29. f4
{[%clk 0:01:10.6]} 29... Ra8 {[%clk 0:00:49]} 30. Rb3 {[%clk 0:00:25.7]} 30...
Ra2 {[%clk 0:00:41.1]} 31. e4 {[%clk 0:00:23.7]} 31... Rxg2 {[%clk 0:00:36.4]}
32. exd5 {[%clk 0:00:21.8]} 32... exd5 {[%clk 0:00:36.3]} 33. Rxb5 {[%clk
0:00:07]} 33... cxb5 {[%clk 0:00:35]} 34. c6 {[%clk 0:00:05.9]} 34... Ra2 {[%clk
0:00:24.4]} 0-1

[Event "Live Chess"]
[Site "Chess.com"]
[Date "2023.05.21"]
[Round "-"]
[White "AbilifyXL"]
[Black "Bot_Boy"]
[Result "1-0"]
[WhiteElo "1939"]
[BlackElo "334"]
[TimeControl "300"]
[EndTime "2:12:55 PDT"]
[Termination "AbilifyXL won on time"]

1. d4 {[%clk 0:04:56.4]} 1... Nc6 {[%clk 0:04:59.9]} 2. c4 {[%clk 0:04:55.6]}
2... d5 {[%clk 0:04:57.2]} 3. Nc3 {[%clk 0:04:54.4]} 3... Be6 {[%clk 0:04:46.3]}
4. cxd5 {[%clk 0:04:53]} 4... Bxd5 {[%clk 0:04:43.8]} 5. e4 {[%clk 0:04:51.5]}
5... Be6 {[%clk 0:04:26.3]} 6. d5 {[%clk 0:04:34.6]} 6... Ne5 {[%clk 0:03:35.9]}
7. dxe6 {[%clk 0:04:15.7]} 7... Qxd1+ {[%clk 0:03:33.1]} 8. Nxd1 {[%clk
0:04:14.5]} 8... fxe6 {[%clk 0:03:18.6]} 9. f4 {[%clk 0:04:02.4]} 9... Nc6
{[%clk 0:03:07.2]} 10. Nf3 {[%clk 0:03:28.5]} 10... Nf6 {[%clk 0:02:55.7]} 11.
e5 {[%clk 0:03:16.3]} 11... Nd5 {[%clk 0:02:43.9]} 12. Bc4 {[%clk 0:03:01.8]}
12... Rd8 {[%clk 0:02:25.1]} 13. O-O {[%clk 0:02:58.3]} 13... Rg8 {[%clk
0:01:50.4]} 14. g3 {[%clk 0:02:37.8]} 14... Na5 {[%clk 0:01:38.8]} 15. Be2
{[%clk 0:02:14.2]} 15... Nb6 {[%clk 0:01:14.4]} 16. Ne3 {[%clk 0:01:52.9]} 16...
c6 {[%clk 0:00:57.5]} 17. Ng5 {[%clk 0:01:19.2]} 17... h6 {[%clk 0:00:38.2]} 18.
Nxe6 {[%clk 0:01:17.4]} 18... Rd7 {[%clk 0:00:21.5]} 19. Rd1 {[%clk 0:01:10.8]}
19... g5 {[%clk 0:00:09.3]} 20. Rxd7 {[%clk 0:01:08]} 20... Kxd7 {[%clk
0:00:07.4]} 21. Nxf8+ {[%clk 0:01:05.6]} 21... Rxf8 {[%clk 0:00:05.8]} 22. f5
{[%clk 0:01:05.5]} 1-0

[Event "Live Chess"]
[Site "Chess.com"]
[Date "2023.05.21"]
[Round "-"]
[White "chessfiction"]
[Black "LiamBellwood"]
[Result "1-0"]
[WhiteElo "2332"]
[BlackElo "1978"]
[TimeControl "300"]
[EndTime "2:13:21 PDT"]
[Termination "chessfiction won by resignation"]

1. e4 {[%clk 0:04:59.3]} 1... e6 {[%clk 0:04:59.9]} 2. d4 {[%clk 0:04:57.8]}
2... d5 {[%clk 0:04:59.8]} 3. Nc3 {[%clk 0:04:56.5]} 3... Nf6 {[%clk 0:04:58.7]}
4. e5 {[%clk 0:04:55.4]} 4... Ng8 {[%clk 0:04:58.3]} 5. Nce2 {[%clk 0:04:55.3]}
5... c5 {[%clk 0:04:57.9]} 6. c3 {[%clk 0:04:55.2]} 6... Nc6 {[%clk 0:04:57.8]}
7. f4 {[%clk 0:04:54.7]} 7... Nh6 {[%clk 0:04:57]} 8. Nf3 {[%clk 0:04:54.1]}
8... Nf5 {[%clk 0:04:56.6]} 9. h4 {[%clk 0:04:51.3]} 9... h5 {[%clk 0:04:54.9]}
10. g3 {[%clk 0:04:48.3]} 10... Qb6 {[%clk 0:04:52.4]} 11. Bh3 {[%clk
0:04:38.4]} 11... g6 {[%clk 0:04:38]} 12. Bxf5 {[%clk 0:04:28.6]} 12... exf5
{[%clk 0:04:24]} 13. O-O {[%clk 0:04:26.5]} 13... Be6 {[%clk 0:04:17.2]} 14. Be3
{[%clk 0:04:24.2]} 14... c4 {[%clk 0:04:01.4]} 15. b3 {[%clk 0:04:16.6]} 15...
Na5 {[%clk 0:04:01]} 16. bxc4 {[%clk 0:04:14.7]} 16... Nxc4 {[%clk 0:04:00.9]}
17. Bf2 {[%clk 0:04:11]} 17... Be7 {[%clk 0:03:41.7]} 18. Rb1 {[%clk 0:04:09.9]}
18... Qc7 {[%clk 0:03:40.4]} 19. Ng5 {[%clk 0:04:04.1]} 19... O-O {[%clk
0:03:32.6]} 20. Qd3 {[%clk 0:03:49.8]} 20... Bd7 {[%clk 0:03:03.3]} 21. Rb3
{[%clk 0:03:40.9]} 21... Ba4 {[%clk 0:02:59.1]} 22. Rbb1 {[%clk 0:03:37.4]}
22... a6 {[%clk 0:02:52.5]} 23. Qf3 {[%clk 0:03:35.2]} 23... Nd2 {[%clk
0:02:38.3]} 24. Qxd5 {[%clk 0:03:31]} 24... Bc6 {[%clk 0:02:30]} 25. Ne6 {[%clk
0:03:24.1]} 25... Qc8 {[%clk 0:02:04.8]} 26. Qa5 {[%clk 0:03:11.6]} 26... Nf3+
{[%clk 0:01:52.8]} 27. Kg2 {[%clk 0:03:08.7]} 27... Qxe6 {[%clk 0:01:48.2]} 28.
c4 {[%clk 0:03:06.1]} 28... Be4 {[%clk 0:01:44.1]} 29. d5 {[%clk 0:03:04.2]}
29... Qd7 {[%clk 0:01:14.8]} 30. Kh3 {[%clk 0:02:59.2]} 30... Bd8 {[%clk
0:01:11.3]} 31. Qb4 {[%clk 0:02:55.4]} 31... Rb8 {[%clk 0:00:58]} 32. Ba7 {[%clk
0:02:51.1]} 32... Rc8 {[%clk 0:00:52.7]} 33. Nc3 {[%clk 0:02:43.6]} 33... Nd2
{[%clk 0:00:42.1]} 34. Nxe4 {[%clk 0:02:21.8]} 34... Nxe4 {[%clk 0:00:42]} 35.
Bd4 {[%clk 0:02:10.9]} 35... b5 {[%clk 0:00:33.7]} 36. Rbd1 {[%clk 0:02:02.9]}
36... Rxc4 {[%clk 0:00:27.1]} 37. Qb2 {[%clk 0:01:56.6]} 37... Qc8 {[%clk
0:00:24.5]} 38. Rc1 {[%clk 0:01:50.6]} 38... Ba5 {[%clk 0:00:20.5]} 39. d6
{[%clk 0:01:47]} 39... Bc3 {[%clk 0:00:16]} 40. d7 {[%clk 0:01:42.4]} 40... Qc7
{[%clk 0:00:13.5]} 41. Bxc3 {[%clk 0:01:39]} 41... Rxc3 {[%clk 0:00:12.9]} 42.
Rxc3 {[%clk 0:01:36.4]} 42... Qxc3 {[%clk 0:00:12.8]} 43. Qxc3 {[%clk
0:01:35.7]} 43... Nxc3 {[%clk 0:00:12.7]} 44. Rc1 {[%clk 0:01:34.1]} 44... Rd8
{[%clk 0:00:12.3]} 45. Rxc3 {[%clk 0:01:33]} 45... Rxd7 {[%clk 0:00:11.3]} 46.
Rc8+ {[%clk 0:01:32.6]} 46... Kg7 {[%clk 0:00:10.3]} 47. Rc6 {[%clk 0:01:32.5]}
47... Ra7 {[%clk 0:00:06.8]} 48. e6 {[%clk 0:01:31.7]} 48... fxe6 {[%clk
0:00:05.8]} 49. Rxe6 {[%clk 0:01:31.6]} 49... Kf7 {[%clk 0:00:05.2]} 50. Rb6
{[%clk 0:01:30.7]} 50... a5 {[%clk 0:00:04.6]} 51. Rxb5 {[%clk 0:01:29.9]} 51...
a4 {[%clk 0:00:04]} 52. a3 {[%clk 0:01:29]} 1-0

[Event "Live Chess"]
[Site "Chess.com"]
[Date "2023.05.21"]
[Round "-"]
[White "WelshTiger"]
[Black "ms_lilley"]
[Result "1-0"]
[WhiteElo "2350"]
[BlackElo "606"]
[TimeControl "300"]
[EndTime "2:13:38 PDT"]
[Termination "WelshTiger won by checkmate"]

1. e3 {[%clk 0:04:59]} 1... e6 {[%clk 0:04:57.2]} 2. c4 {[%clk 0:04:57.5]} 2...
c6 {[%clk 0:04:55.3]} 3. Nc3 {[%clk 0:04:55.8]} 3... a6 {[%clk 0:04:52.5]} 4. d4
{[%clk 0:04:54.2]} 4... d5 {[%clk 0:04:50.2]} 5. Nf3 {[%clk 0:04:51.7]} 5... h6
{[%clk 0:04:48.5]} 6. Bd3 {[%clk 0:04:50.5]} 6... Nf6 {[%clk 0:04:46.1]} 7. Qe2
{[%clk 0:04:49.8]} 7... dxc4 {[%clk 0:04:42.2]} 8. Bxc4 {[%clk 0:04:48.6]} 8...
Bd6 {[%clk 0:04:37.8]} 9. O-O {[%clk 0:04:47]} 9... O-O {[%clk 0:04:28.8]} 10.
e4 {[%clk 0:04:46.2]} 10... Nh5 {[%clk 0:04:22.1]} 11. Ne5 {[%clk 0:04:38.6]}
11... Bxe5 {[%clk 0:04:13]} 12. dxe5 {[%clk 0:04:37.6]} 12... Qd4 {[%clk
0:04:08.4]} 13. Bb3 {[%clk 0:03:53.9]} 13... Qxe5 {[%clk 0:04:01.3]} 14. f4
{[%clk 0:03:53.2]} 14... Nxf4 {[%clk 0:03:51.3]} 15. Bxf4 {[%clk 0:03:51]} 15...
Qd4+ {[%clk 0:03:43.7]} 16. Be3 {[%clk 0:03:49.8]} 16... Qe5 {[%clk 0:03:39.3]}
17. Qg4 {[%clk 0:03:42.4]} 17... g5 {[%clk 0:03:34.3]} 18. Rad1 {[%clk
0:03:37.6]} 18... Nd7 {[%clk 0:03:30.6]} 19. Bd4 {[%clk 0:03:31.5]} 19... Qa5
{[%clk 0:03:19.9]} 20. e5 {[%clk 0:03:21.6]} 20... Kg7 {[%clk 0:03:15.4]} 21. h4
{[%clk 0:03:19.6]} 21... f5 {[%clk 0:03:10.1]} 22. exf6+ {[%clk 0:03:18]} 22...
Nxf6 {[%clk 0:03:04.8]} 23. hxg5 {[%clk 0:03:15.9]} 23... hxg5 {[%clk
0:02:54.5]} 24. Rde1 {[%clk 0:03:06]} 24... e5 {[%clk 0:02:51.5]} 25. Qxg5+
{[%clk 0:03:04.6]} 25... Kh8 {[%clk 0:02:41.8]} 26. Bxe5 {[%clk 0:02:58.7]}
26... Rg8 {[%clk 0:02:33.2]} 27. Bxf6+ {[%clk 0:02:57]} 27... Kh7 {[%clk
0:02:26]} 28. Bc2+ {[%clk 0:02:56]} 28... Bf5 {[%clk 0:02:15.5]} 29. Qh5# {[%clk
0:02:54.8]} 1-0

[Event "Live Chess"]
[Site "Chess.com"]
[Date "2023.05.21"]
[Round "-"]
[White "elephantgerrald"]
[Black "MarkLim1"]
[Result "0-1"]
[WhiteElo "696"]
[BlackElo "1722"]
[TimeControl "300"]
[EndTime "2:13:42 PDT"]
[Termination "MarkLim1 won by checkmate"]

1. e4 {[%clk 0:04:57.5]} 1... e6 {[%clk 0:04:58.5]} 2. Nf3 {[%clk 0:04:55.2]}
2... d5 {[%clk 0:04:57.8]} 3. e5 {[%clk 0:04:52.8]} 3... c5 {[%clk 0:04:56.5]}
4. d4 {[%clk 0:04:51.3]} 4... Nc6 {[%clk 0:04:54.8]} 5. dxc5 {[%clk 0:04:50.2]}
5... Bxc5 {[%clk 0:04:53]} 6. c4 {[%clk 0:04:47.9]} 6... Nge7 {[%clk 0:04:51.5]}
7. cxd5 {[%clk 0:04:46.5]} 7... Nxd5 {[%clk 0:04:49.9]} 8. Bc4 {[%clk
0:04:43.1]} 8... O-O {[%clk 0:04:42.1]} 9. Bxd5 {[%clk 0:04:41.4]} 9... exd5
{[%clk 0:04:40.3]} 10. Bg5 {[%clk 0:04:39.6]} 10... Qc7 {[%clk 0:04:34.5]} 11.
Qxd5 {[%clk 0:04:34.4]} 11... Be6 {[%clk 0:04:33.3]} 12. Qxc5 {[%clk 0:04:29.5]}
12... h6 {[%clk 0:04:26.6]} 13. Be7 {[%clk 0:04:26]} 13... Rfe8 {[%clk 0:04:22]}
14. Bd6 {[%clk 0:04:22.5]} 14... Qd7 {[%clk 0:04:19.8]} 15. O-O {[%clk
0:04:19.5]} 15... b6 {[%clk 0:04:18]} 16. Qa3 {[%clk 0:04:10.8]} 16... Rac8
{[%clk 0:04:13.1]} 17. Nc3 {[%clk 0:03:59.5]} 17... Bg4 {[%clk 0:04:08.4]} 18.
Nd2 {[%clk 0:03:49.1]} 18... Nxe5 {[%clk 0:04:03]} 19. Nde4 {[%clk 0:03:43.2]}
19... Nc4 {[%clk 0:03:47.3]} 20. Qb3 {[%clk 0:03:25]} 20... Nxd6 {[%clk
0:03:44.8]} 21. Nxd6 {[%clk 0:03:23]} 21... Qxd6 {[%clk 0:03:42.7]} 22. Qd5
{[%clk 0:03:18.9]} 22... Qg6 {[%clk 0:03:38.4]} 23. g3 {[%clk 0:03:13.5]} 23...
Red8 {[%clk 0:03:31.8]} 24. Qe4 {[%clk 0:02:55.7]} 24... Bf5 {[%clk 0:03:20.6]}
25. Qe7 {[%clk 0:02:39.2]} 25... Bh3 {[%clk 0:03:15.9]} 26. Qxa7 {[%clk
0:02:16.3]} 26... Bxf1 {[%clk 0:03:10.7]} 27. Qxb6 {[%clk 0:02:14.1]} 27... Qxb6
{[%clk 0:03:07.5]} 28. Nd5 {[%clk 0:02:09.5]} 28... Rxd5 {[%clk 0:03:04.8]} 29.
Kxf1 {[%clk 0:02:06.2]} 29... Qxb2 {[%clk 0:03:03.4]} 30. Re1 {[%clk 0:02:03.9]}
30... Rc1 {[%clk 0:03:01.3]} 31. Rxc1 {[%clk 0:01:33.8]} 31... Qxc1+ {[%clk
0:03:01.2]} 32. Kg2 {[%clk 0:01:31.8]} 32... g5 {[%clk 0:02:58.2]} 33. h4 {[%clk
0:01:21.1]} 33... g4 {[%clk 0:02:57.1]} 34. h5 {[%clk 0:01:19.8]} 34... Rd1
{[%clk 0:02:54.8]} 35. f3 {[%clk 0:01:18.2]} 35... Qd2# {[%clk 0:02:52]} 0-1

[Event "Live Chess"]
[Site "Chess.com"]
[Date "2023.05.21"]
[Round "-"]
[White "ProfPoisson"]
[Black "Denz14"]
[Result "1-0"]
[WhiteElo "1228"]
[BlackElo "1044"]
[TimeControl "300"]
[EndTime "2:13:51 PDT"]
[Termination "ProfPoisson won by resignation"]

1. e4 {[%clk 0:04:54.7]} 1... d5 {[%clk 0:04:54.9]} 2. exd5 {[%clk 0:04:53]}
2... Qxd5 {[%clk 0:04:53.8]} 3. Nc3 {[%clk 0:04:51.7]} 3... Qd8 {[%clk
0:04:53.7]} 4. d4 {[%clk 0:04:48.9]} 4... Nf6 {[%clk 0:04:49.1]} 5. Nf3 {[%clk
0:04:47.3]} 5... Bg4 {[%clk 0:04:45.5]} 6. Be2 {[%clk 0:04:39.8]} 6... Bxf3
{[%clk 0:04:43.7]} 7. Bxf3 {[%clk 0:04:37.2]} 7... c5 {[%clk 0:04:43.6]} 8. Bxb7
{[%clk 0:04:28.9]} 8... cxd4 {[%clk 0:04:40.4]} 9. Bxa8 {[%clk 0:04:24.5]} 9...
dxc3 {[%clk 0:04:35]} 10. Qxd8+ {[%clk 0:04:20.8]} 10... Kxd8 {[%clk 0:04:33.6]}
11. bxc3 {[%clk 0:04:18.5]} 11... e5 {[%clk 0:04:28.8]} 12. O-O {[%clk
0:04:16.2]} 1-0